[Event "Early-Titled-Tuesday-Blitz-March-19-2024"]
[Site "Chess.com"]
[Date "2024.03.19"]
[Round "1"]
[White "carloseduar100"]
[Black "1mbl4"]
[Result "0-1"]
[WhiteElo "2261"]
[BlackElo "2629"]
[TimeControl "180+1"]
[EndTime "8:04:40 PDT"]
[Termination "1mbl4 won by checkmate"]

1. d4 {[%clk 0:03:00.1]} 1... Nf6 {[%clk 0:02:56.7]} 2. Bg5 {[%clk 0:02:59.9]}
2... g6 {[%clk 0:02:52.6]} 3. Bxf6 {[%clk 0:02:56.5]} 3... exf6 {[%clk
0:02:53.5]} 4. g3 {[%clk 0:02:56.7]} 4... d5 {[%clk 0:02:53]} 5. Bg2 {[%clk
0:02:56.5]} 5... f5 {[%clk 0:02:51.2]} 6. e3 {[%clk 0:02:56.7]} 6... c6 {[%clk
0:02:46]} 7. Ne2 {[%clk 0:02:57]} 7... Bd6 {[%clk 0:02:43.5]} 8. Nd2 {[%clk
0:02:56.2]} 8... Nd7 {[%clk 0:02:43.1]} 9. c4 {[%clk 0:02:56.4]} 9... Nf6 {[%clk
0:02:33.2]} 10. O-O {[%clk 0:02:55.9]} 10... h5 {[%clk 0:02:28]} 11. Qb3 {[%clk
0:02:54.9]} 11... h4 {[%clk 0:01:52.8]} 12. cxd5 {[%clk 0:02:54.6]} 12... hxg3
{[%clk 0:01:52.8]} 13. hxg3 {[%clk 0:02:54.9]} 13... cxd5 {[%clk 0:01:49.5]} 14.
Nc3 {[%clk 0:02:55.1]} 14... Be6 {[%clk 0:01:35.4]} 15. Nxd5 {[%clk 0:02:49.4]}
15... Nxd5 {[%clk 0:01:07.3]} 16. Bxd5 {[%clk 0:02:48.3]} 16... Bxg3 {[%clk
0:00:51.1]} 17. Bxe6 {[%clk 0:01:44.5]} 17... Bh2+ {[%clk 0:00:49.3]} 18. Kg2
{[%clk 0:01:41.3]} 18... Qg5+ {[%clk 0:00:47.7]} 19. Kh1 {[%clk 0:01:33.2]}
19... Bg1# {[%clk 0:00:47.4]} 0-1

[Event "Early-Titled-Tuesday-Blitz-March-19-2024"]
[Site "Chess.com"]
[Date "2024.03.19"]
[Round "1"]
[White "Adar_07"]
[Black "ATM622"]
[Result "1-0"]
[WhiteElo "2842"]
[BlackElo "2476"]
[TimeControl "180+1"]
[EndTime "8:04:52 PDT"]
[Termination "Adar_07 won by resignation"]

1. e4 {[%clk 0:03:00.9]} 1... c6 {[%clk 0:02:59.5]} 2. d4 {[%clk 0:03:00.6]}
2... d5 {[%clk 0:02:59.5]} 3. Nc3 {[%clk 0:03:00.3]} 3... dxe4 {[%clk
0:02:57.7]} 4. Nxe4 {[%clk 0:03:01.2]} 4... Bf5 {[%clk 0:02:56.6]} 5. Ng3 {[%clk
0:03:01.1]} 5... Bg6 {[%clk 0:02:56.9]} 6. Nh3 {[%clk 0:03:00.9]} 6... e6 {[%clk
0:02:55.8]} 7. Nf4 {[%clk 0:03:00.4]} 7... Bd6 {[%clk 0:02:55.9]} 8. c3 {[%clk
0:02:46.6]} 8... Nf6 {[%clk 0:02:54.3]} 9. Bc4 {[%clk 0:02:19]} 9... O-O {[%clk
0:02:48.1]} 10. h4 {[%clk 0:02:05.7]} 10... Bxf4 {[%clk 0:02:47.2]} 11. Bxf4
{[%clk 0:02:05.5]} 11... Nd5 {[%clk 0:02:42.4]} 12. Bxd5 {[%clk 0:01:54]} 12...
Qxd5 {[%clk 0:02:41.5]} 13. h5 {[%clk 0:01:50.5]} 13... Bf5 {[%clk 0:02:36]} 14.
Qd2 {[%clk 0:01:32]} 14... Nd7 {[%clk 0:02:29.4]} 15. O-O {[%clk 0:01:12.2]}
15... Nf6 {[%clk 0:02:24.1]} 16. Rfe1 {[%clk 0:01:05.8]} 16... Rad8 {[%clk
0:01:56.9]} 17. h6 {[%clk 0:01:03.9]} 17... g6 {[%clk 0:01:50.9]} 18. Bg5 {[%clk
0:01:03.6]} 18... Ne4 {[%clk 0:01:40.7]} 19. Nxe4 {[%clk 0:01:00.8]} 19... Bxe4
{[%clk 0:01:41.6]} 20. Bxd8 {[%clk 0:00:57.9]} 20... Bxg2 {[%clk 0:01:39.1]} 21.
Qg5 {[%clk 0:00:51.7]} 21... Bh1 {[%clk 0:01:30.1]} 22. Qxd5 {[%clk 0:00:49]}
22... Bxd5 {[%clk 0:01:23.5]} 23. Bf6 {[%clk 0:00:48.3]} 1-0

[Event "Early-Titled-Tuesday-Blitz-March-19-2024"]
[Site "Chess.com"]
[Date "2024.03.19"]
[Round "1"]
[White "jefferyx"]
[Black "betta2004"]
[Result "1-0"]
[WhiteElo "3106"]
[BlackElo "2571"]
[TimeControl "180+1"]
[EndTime "8:04:56 PDT"]
[Termination "jefferyx won on time"]

1. e4 {[%clk 0:03:00.9]} 1... c5 {[%clk 0:02:16.7]} 2. Nf3 {[%clk 0:03:00.8]}
2... a6 {[%clk 0:02:11.2]} 3. g3 {[%clk 0:02:59.6]} 3... g6 {[%clk 0:02:06.5]}
4. d4 {[%clk 0:02:43.6]} 4... cxd4 {[%clk 0:02:07.4]} 5. Qxd4 {[%clk 0:02:43.8]}
5... Nf6 {[%clk 0:02:01.7]} 6. e5 {[%clk 0:02:43.8]} 6... Nc6 {[%clk 0:01:52.5]}
7. Qe3 {[%clk 0:02:43.8]} 7... Nd5 {[%clk 0:01:41.3]} 8. Qe4 {[%clk 0:02:43.6]}
8... Nc7 {[%clk 0:01:23.6]} 9. Bg2 {[%clk 0:02:43.3]} 9... Bg7 {[%clk
0:01:18.7]} 10. O-O {[%clk 0:02:43.1]} 10... d5 {[%clk 0:01:17.7]} 11. exd6
{[%clk 0:02:42.9]} 11... Qxd6 {[%clk 0:01:17.8]} 12. Bf4 {[%clk 0:02:43.1]}
12... Qd5 {[%clk 0:01:14]} 13. Qe2 {[%clk 0:02:38.5]} 13... Ne6 {[%clk
0:01:13.6]} 14. Be3 {[%clk 0:02:25.2]} 14... Qa5 {[%clk 0:01:10.4]} 15. c3
{[%clk 0:02:23.6]} 15... O-O {[%clk 0:01:08.3]} 16. Nbd2 {[%clk 0:02:22.1]}
16... Qc7 {[%clk 0:01:07.4]} 17. a4 {[%clk 0:02:20]} 17... b6 {[%clk 0:01:07.5]}
18. Nc4 {[%clk 0:02:19.6]} 18... Rb8 {[%clk 0:01:05.7]} 19. Ng5 {[%clk
0:02:10.8]} 19... Nxg5 {[%clk 0:00:42.9]} 20. Bxg5 {[%clk 0:02:11.7]} 20... e5
{[%clk 0:00:42.2]} 21. Ne3 {[%clk 0:02:11]} 21... Be6 {[%clk 0:00:27.4]} 22. Nd5
{[%clk 0:02:11.1]} 22... Bxd5 {[%clk 0:00:11.2]} 23. Bxd5 {[%clk 0:02:12]} 23...
Rbd8 {[%clk 0:00:11.5]} 24. Rfd1 {[%clk 0:02:09.8]} 24... Rd7 {[%clk 0:00:09.4]}
25. Qxa6 {[%clk 0:02:07.9]} 1-0

[Event "Early-Titled-Tuesday-Blitz-March-19-2024"]
[Site "Chess.com"]
[Date "2024.03.19"]
[Round "1"]
[White "NovoselovRoman"]
[Black "yosephtaher"]
[Result "0-1"]
[WhiteElo "2535"]
[BlackElo "2970"]
[TimeControl "180+1"]
[EndTime "8:04:59 PDT"]
[Termination "yosephtaher won by checkmate"]

1. d4 {[%clk 0:03:00.9]} 1... Nf6 {[%clk 0:03:00]} 2. Nc3 {[%clk 0:03:00]} 2...
d5 {[%clk 0:03:00]} 3. Bf4 {[%clk 0:02:59.3]} 3... c5 {[%clk 0:02:55]} 4. e3
{[%clk 0:02:55.9]} 4... cxd4 {[%clk 0:02:54]} 5. exd4 {[%clk 0:02:56.1]} 5... a6
{[%clk 0:02:54.6]} 6. Nf3 {[%clk 0:02:55]} 6... Bg4 {[%clk 0:02:55]} 7. h3
{[%clk 0:02:53.2]} 7... Bxf3 {[%clk 0:02:55.5]} 8. Qxf3 {[%clk 0:02:53]} 8...
Nc6 {[%clk 0:02:56.4]} 9. O-O-O {[%clk 0:02:47.8]} 9... e6 {[%clk 0:02:56.8]}
10. g4 {[%clk 0:02:44.2]} 10... Rc8 {[%clk 0:02:55.9]} 11. g5 {[%clk 0:02:43.6]}
11... Nd7 {[%clk 0:02:55.9]} 12. h4 {[%clk 0:02:15.3]} 12... Be7 {[%clk
0:02:56.2]} 13. Rg1 {[%clk 0:02:11.8]} 13... Qb6 {[%clk 0:02:52.8]} 14. Be3
{[%clk 0:01:59.6]} 14... Na5 {[%clk 0:02:45.7]} 15. h5 {[%clk 0:01:48.2]} 15...
Ba3 {[%clk 0:02:34.2]} 16. bxa3 {[%clk 0:01:28.5]} 16... Rxc3 {[%clk 0:02:34.1]}
17. g6 {[%clk 0:01:24.9]} 17... hxg6 {[%clk 0:02:35]} 18. hxg6 {[%clk
0:01:24.7]} 18... f5 {[%clk 0:02:35.4]} 19. Bd3 {[%clk 0:01:04.3]} 19... Rxa3
{[%clk 0:02:30.9]} 20. Bxf5 {[%clk 0:00:52.8]} 20... Rf8 {[%clk 0:02:29.7]} 21.
Rg5 {[%clk 0:00:45.6]} 21... Nc4 {[%clk 0:02:24.7]} 22. Rdg1 {[%clk 0:00:15.4]}
22... Rxa2 {[%clk 0:02:07.3]} 23. Kd1 {[%clk 0:00:15.1]} 23... Rxf5 {[%clk
0:02:05]} 24. Rxf5 {[%clk 0:00:14.8]} 24... Qb1+ {[%clk 0:02:05.7]} 25. Ke2
{[%clk 0:00:11.9]} 25... Qxc2+ {[%clk 0:02:06.6]} 26. Kf1 {[%clk 0:00:12.4]}
26... Qxf5 {[%clk 0:02:07.2]} 27. Qh1 {[%clk 0:00:11.8]} 27... Nxe3+ {[%clk
0:02:06.8]} 28. Ke1 {[%clk 0:00:11.6]} 28... Qxf2# {[%clk 0:02:07.7]} 0-1

[Event "Early-Titled-Tuesday-Blitz-March-19-2024"]
[Site "Chess.com"]
[Date "2024.03.19"]
[Round "1"]
[White "esrosenberg"]
[Black "GnowReopard"]
[Result "0-1"]
[WhiteElo "2441"]
[BlackElo "2807"]
[TimeControl "180+1"]
[EndTime "8:05:03 PDT"]
[Termination "GnowReopard won by resignation"]

1. d4 {[%clk 0:02:59.9]} 1... Nf6 {[%clk 0:02:59.5]} 2. Nf3 {[%clk 0:03:00.5]}
2... e6 {[%clk 0:02:58.8]} 3. g3 {[%clk 0:03:00.9]} 3... c5 {[%clk 0:02:50.7]}
4. Bg2 {[%clk 0:03:00.9]} 4... cxd4 {[%clk 0:02:50.5]} 5. O-O {[%clk 0:03:01.2]}
5... d5 {[%clk 0:02:48]} 6. Nxd4 {[%clk 0:02:53.2]} 6... e5 {[%clk 0:02:48.1]}
7. Nb3 {[%clk 0:02:53.9]} 7... Nc6 {[%clk 0:02:46.3]} 8. Nc3 {[%clk 0:02:46.7]}
8... d4 {[%clk 0:02:41.9]} 9. Ne4 {[%clk 0:02:47]} 9... Nxe4 {[%clk 0:02:42.2]}
10. Bxe4 {[%clk 0:02:47.9]} 10... Be7 {[%clk 0:02:42.5]} 11. e3 {[%clk
0:02:39.6]} 11... O-O {[%clk 0:02:29.1]} 12. exd4 {[%clk 0:02:39.9]} 12... Nxd4
{[%clk 0:02:28.8]} 13. Nxd4 {[%clk 0:02:40.3]} 13... exd4 {[%clk 0:02:28.9]} 14.
b3 {[%clk 0:02:30.4]} 14... Bf6 {[%clk 0:02:27.4]} 15. Bb2 {[%clk 0:02:30.5]}
15... Qb6 {[%clk 0:02:00.7]} 16. Qd3 {[%clk 0:02:26.5]} 16... g6 {[%clk
0:02:00.1]} 17. Rad1 {[%clk 0:02:22.8]} 17... Bh3 {[%clk 0:01:56.3]} 18. Rfe1
{[%clk 0:02:22.8]} 18... Rad8 {[%clk 0:01:56.9]} 19. Qf3 {[%clk 0:02:16.8]}
19... h5 {[%clk 0:01:51]} 20. Rd3 {[%clk 0:01:56.9]} 20... Rfe8 {[%clk
0:01:44.3]} 21. Bc1 {[%clk 0:01:16.7]} 21... Bg7 {[%clk 0:01:38.8]} 22. Bd2
{[%clk 0:01:14.5]} 22... Rd7 {[%clk 0:01:24.8]} 23. a4 {[%clk 0:01:12]} 23...
Rde7 {[%clk 0:01:23.5]} 24. a5 {[%clk 0:01:10.4]} 24... Qc6 {[%clk 0:01:16.9]}
0-1

[Event "Early-Titled-Tuesday-Blitz-March-19-2024"]
[Site "Chess.com"]
[Date "2024.03.19"]
[Round "1"]
[White "Ural_bogatyr"]
[Black "Sofia_Blokhin"]
[Result "0-1"]
[WhiteElo "2602"]
[BlackElo "2243"]
[TimeControl "180+1"]
[EndTime "8:05:03 PDT"]
[Termination "Sofia_Blokhin won by resignation"]

1. d4 {[%clk 0:03:00.9]} 1... f5 {[%clk 0:02:58.6]} 2. g3 {[%clk 0:02:59.1]}
2... Nf6 {[%clk 0:02:58]} 3. Bg2 {[%clk 0:02:59.4]} 3... g6 {[%clk 0:02:58.3]}
4. Nd2 {[%clk 0:02:59.8]} 4... Bg7 {[%clk 0:02:58.3]} 5. e4 {[%clk 0:03:00.2]}
5... fxe4 {[%clk 0:02:57.2]} 6. Nxe4 {[%clk 0:03:01.1]} 6... O-O {[%clk
0:02:56.7]} 7. Ne2 {[%clk 0:03:00.6]} 7... d6 {[%clk 0:02:53.9]} 8. O-O {[%clk
0:02:59.4]} 8... Nc6 {[%clk 0:02:51.8]} 9. c3 {[%clk 0:02:59.1]} 9... e5 {[%clk
0:02:48.5]} 10. Bg5 {[%clk 0:02:56]} 10... h6 {[%clk 0:02:44.2]} 11. Nxf6+
{[%clk 0:02:53.8]} 11... Bxf6 {[%clk 0:02:41.6]} 12. Bxh6 {[%clk 0:02:53.8]}
12... Re8 {[%clk 0:02:40.1]} 13. dxe5 {[%clk 0:02:50.5]} 13... Nxe5 {[%clk
0:02:36.9]} 14. Nd4 {[%clk 0:02:49.8]} 14... g5 {[%clk 0:02:15.7]} 15. Qc2
{[%clk 0:02:47.7]} 15... Qe7 {[%clk 0:02:06]} 16. Bd5+ {[%clk 0:02:46.8]} 16...
Kh8 {[%clk 0:02:03]} 17. f4 {[%clk 0:02:43.7]} 17... Ng4 {[%clk 0:01:57.1]} 18.
fxg5 {[%clk 0:02:32.8]} 18... Bxd4+ {[%clk 0:01:49.4]} 19. cxd4 {[%clk
0:02:28.9]} 19... Ne3 {[%clk 0:01:49.2]} 20. Rae1 {[%clk 0:02:16.9]} 20... Bh3
{[%clk 0:01:31.7]} 21. Rf7 {[%clk 0:02:11.2]} 21... Qxf7 {[%clk 0:01:18.9]} 22.
Bxf7 {[%clk 0:02:12.1]} 22... Nxc2 {[%clk 0:01:18.6]} 23. Rxe8+ {[%clk
0:02:12.8]} 23... Rxe8 {[%clk 0:01:18.2]} 24. Bxe8 {[%clk 0:02:13.7]} 24... Nxd4
{[%clk 0:01:17.1]} 25. g6 {[%clk 0:02:06.7]} 25... Nf3+ {[%clk 0:01:08]} 26. Kf2
{[%clk 0:02:06.1]} 26... Ne5 {[%clk 0:01:07.4]} 27. Bf7 {[%clk 0:02:02.7]} 27...
Ng4+ {[%clk 0:00:59.6]} 28. Kf3 {[%clk 0:02:02.5]} 28... Nxh6 {[%clk 0:00:59.7]}
29. Be8 {[%clk 0:02:00.7]} 29... Kg7 {[%clk 0:00:59.1]} 30. Kf4 {[%clk
0:02:00.6]} 30... Bf5 {[%clk 0:00:57.3]} 31. Kg5 {[%clk 0:02:00]} 31... Bb1
{[%clk 0:00:55.6]} 32. a4 {[%clk 0:01:59.7]} 32... d5 {[%clk 0:00:54.9]} 33. a5
{[%clk 0:01:59.3]} 33... d4 {[%clk 0:00:54.7]} 34. h4 {[%clk 0:01:57]} 34... d3
{[%clk 0:00:54.3]} 35. h5 {[%clk 0:01:55.9]} 35... Bc2 {[%clk 0:00:52.2]} 36. a6
{[%clk 0:01:48.7]} 36... bxa6 {[%clk 0:00:51.6]} 0-1

[Event "Early-Titled-Tuesday-Blitz-March-19-2024"]
[Site "Chess.com"]
[Date "2024.03.19"]
[Round "1"]
[White "MaxLeto"]
[Black "TigrVShlyape"]
[Result "0-1"]
[WhiteElo "2511"]
[BlackElo "2914"]
[TimeControl "180+1"]
[EndTime "8:05:12 PDT"]
[Termination "TigrVShlyape won by checkmate"]

1. g4 {[%clk 0:00:12.4]} 1... d5 {[%clk 0:02:49.7]} 2. Bg2 {[%clk 0:00:11.8]}
2... c6 {[%clk 0:02:49.3]} 3. h3 {[%clk 0:00:12]} 3... e5 {[%clk 0:02:47.7]} 4.
d4 {[%clk 0:00:12.5]} 4... Nd7 {[%clk 0:02:35.3]} 5. dxe5 {[%clk 0:00:07.9]}
5... Nxe5 {[%clk 0:02:34.4]} 6. b3 {[%clk 0:00:06.8]} 6... Qf6 {[%clk
0:02:21.4]} 7. c3 {[%clk 0:00:02.8]} 7... Bc5 {[%clk 0:02:19.3]} 8. e3 {[%clk
0:00:02.2]} 8... Qg6 {[%clk 0:02:16.4]} 9. Ke2 {[%clk 0:00:01.8]} 9... Nf6
{[%clk 0:02:03.3]} 10. f4 {[%clk 0:00:02.1]} 10... Nfxg4 {[%clk 0:01:30.5]} 11.
hxg4 {[%clk 0:00:03]} 11... Qxg4+ {[%clk 0:01:29.2]} 12. Bf3 {[%clk 0:00:02.3]}
12... Nxf3 {[%clk 0:01:29.3]} 13. Nxf3 {[%clk 0:00:03]} 13... Qg2+ {[%clk
0:01:29.6]} 14. Kd3 {[%clk 0:00:02.5]} 14... Bf5+ {[%clk 0:01:29.7]} 15. e4
{[%clk 0:00:02.4]} 15... Bxe4# {[%clk 0:01:29.5]} 0-1

[Event "Early-Titled-Tuesday-Blitz-March-19-2024"]
[Site "Chess.com"]
[Date "2024.03.19"]
[Round "1"]
[White "TERMINATOR_PC"]
[Black "Durarbayli"]
[Result "0-1"]
[WhiteElo "2547"]
[BlackElo "2996"]
[TimeControl "180+1"]
[EndTime "8:05:17 PDT"]
[Termination "Durarbayli won by resignation"]

1. e4 {[%clk 0:02:21.7]} 1... c5 {[%clk 0:02:58.3]} 2. Nf3 {[%clk 0:02:21.9]}
2... d6 {[%clk 0:02:59]} 3. d4 {[%clk 0:02:21.6]} 3... cxd4 {[%clk 0:02:59.9]}
4. Nxd4 {[%clk 0:02:22.4]} 4... Nf6 {[%clk 0:03:00.8]} 5. Nc3 {[%clk 0:02:22.4]}
5... a6 {[%clk 0:03:01.3]} 6. Be2 {[%clk 0:02:22.2]} 6... e5 {[%clk 0:02:56]} 7.
Nf3 {[%clk 0:02:19.7]} 7... h6 {[%clk 0:02:53.9]} 8. Nd2 {[%clk 0:02:13.4]} 8...
b5 {[%clk 0:02:47.9]} 9. a4 {[%clk 0:02:12.3]} 9... b4 {[%clk 0:02:48.5]} 10.
Nd5 {[%clk 0:02:11.9]} 10... Nxd5 {[%clk 0:02:49]} 11. exd5 {[%clk 0:02:12]}
11... Nd7 {[%clk 0:02:46.9]} 12. Nc4 {[%clk 0:02:06.2]} 12... Be7 {[%clk
0:02:43.8]} 13. O-O {[%clk 0:02:05.5]} 13... O-O {[%clk 0:02:37.5]} 14. a5
{[%clk 0:02:04.6]} 14... Rb8 {[%clk 0:02:34.6]} 15. b3 {[%clk 0:02:03]} 15...
Rb5 {[%clk 0:02:32.2]} 16. Ne3 {[%clk 0:01:47.7]} 16... Rxa5 {[%clk 0:02:31.6]}
17. Rxa5 {[%clk 0:01:46.4]} 17... Qxa5 {[%clk 0:02:32.5]} 18. Bd2 {[%clk
0:01:46.4]} 18... Qc5 {[%clk 0:02:27]} 19. Nf5 {[%clk 0:01:14]} 19... Re8 {[%clk
0:02:19.9]} 20. Be3 {[%clk 0:01:10.7]} 20... Qc7 {[%clk 0:02:19.6]} 21. Qd2
{[%clk 0:01:07.8]} 21... Nf6 {[%clk 0:02:11.5]} 22. Nxe7+ {[%clk 0:01:06.6]}
22... Rxe7 {[%clk 0:02:09.7]} 23. Bc4 {[%clk 0:01:04.1]} 23... a5 {[%clk
0:02:08.8]} 24. Ra1 {[%clk 0:01:02.4]} 24... Bb7 {[%clk 0:02:03.5]} 25. f3
{[%clk 0:00:59.9]} 25... Re8 {[%clk 0:02:02.6]} 26. h3 {[%clk 0:00:54.2]} 26...
Ra8 {[%clk 0:02:02.6]} 27. Rd1 {[%clk 0:00:49.6]} 27... Ba6 {[%clk 0:02:02.5]}
28. Bxa6 {[%clk 0:00:48.8]} 28... Rxa6 {[%clk 0:02:03.4]} 29. Rc1 {[%clk
0:00:44.9]} 29... Qb7 {[%clk 0:02:00.5]} 30. Rd1 {[%clk 0:00:38.9]} 30... Ra8
{[%clk 0:01:59.9]} 31. Bf2 {[%clk 0:00:35.2]} 31... Rc8 {[%clk 0:01:58.7]} 32.
Bh4 {[%clk 0:00:35]} 32... Nd7 {[%clk 0:01:57.6]} 33. Qf2 {[%clk 0:00:24.1]}
33... Nb6 {[%clk 0:01:56.1]} 34. Be7 {[%clk 0:00:23.2]} 34... Qxe7 {[%clk
0:01:53.6]} 35. Qxb6 {[%clk 0:00:23.4]} 35... Rxc2 {[%clk 0:01:54.3]} 36. Qxa5
{[%clk 0:00:23]} 36... Qg5 {[%clk 0:01:52.7]} 0-1

[Event "Early-Titled-Tuesday-Blitz-March-19-2024"]
[Site "Chess.com"]
[Date "2024.03.19"]
[Round "1"]
[White "margarita_2703"]
[Black "edgarhay012"]
[Result "0-1"]
[WhiteElo "2317"]
[BlackElo "2662"]
[TimeControl "180+1"]
[EndTime "8:05:17 PDT"]
[Termination "edgarhay012 won by resignation"]

1. e4 {[%clk 0:03:00.9]} 1... e6 {[%clk 0:02:57.9]} 2. d4 {[%clk 0:02:57.8]}
2... d5 {[%clk 0:02:58.5]} 3. e5 {[%clk 0:02:52.9]} 3... c5 {[%clk 0:02:58.1]}
4. c3 {[%clk 0:02:52.2]} 4... Qb6 {[%clk 0:02:55.9]} 5. Nf3 {[%clk 0:02:51.2]}
5... Nc6 {[%clk 0:02:56.2]} 6. a3 {[%clk 0:02:50.6]} 6... Nh6 {[%clk 0:02:55.9]}
7. b4 {[%clk 0:02:37.3]} 7... cxd4 {[%clk 0:02:54.9]} 8. cxd4 {[%clk 0:02:38.2]}
8... Nf5 {[%clk 0:02:54.5]} 9. Bb2 {[%clk 0:02:32.9]} 9... Be7 {[%clk
0:02:53.5]} 10. Bd3 {[%clk 0:02:17.9]} 10... O-O {[%clk 0:02:51.7]} 11. O-O
{[%clk 0:02:16]} 11... Bd7 {[%clk 0:02:50.3]} 12. Bxf5 {[%clk 0:02:14.5]} 12...
exf5 {[%clk 0:02:51.2]} 13. Nc3 {[%clk 0:02:15.3]} 13... Be6 {[%clk 0:02:50.8]}
14. Na4 {[%clk 0:02:14.5]} 14... Qd8 {[%clk 0:02:51.4]} 15. Nc5 {[%clk
0:02:15.4]} 15... b6 {[%clk 0:02:51.6]} 16. Nxe6 {[%clk 0:02:14.8]} 16... fxe6
{[%clk 0:02:52.5]} 17. Rc1 {[%clk 0:02:15.6]} 17... Qd7 {[%clk 0:02:52.7]} 18.
Qa4 {[%clk 0:02:15.1]} 18... Rfc8 {[%clk 0:02:50.1]} 19. Rc2 {[%clk 0:02:15]}
19... Nxe5 {[%clk 0:02:21.6]} 20. Qxd7 {[%clk 0:02:00.8]} 20... Nxd7 {[%clk
0:02:22.5]} 21. Re2 {[%clk 0:01:58.7]} 21... Nf8 {[%clk 0:02:19.8]} 22. Bc1
{[%clk 0:01:54.1]} 22... h6 {[%clk 0:02:17]} 23. Bf4 {[%clk 0:01:50.7]} 23...
Rc3 {[%clk 0:02:17.1]} 24. Re3 {[%clk 0:01:49.9]} 24... Rac8 {[%clk 0:02:15.4]}
25. h4 {[%clk 0:01:47.3]} 25... Rxe3 {[%clk 0:02:15.4]} 26. fxe3 {[%clk
0:01:48.2]} 26... Rc3 {[%clk 0:02:15.1]} 27. Ra1 {[%clk 0:01:46.8]} 27... Nd7
{[%clk 0:02:14.3]} 28. g3 {[%clk 0:01:44.5]} 28... Nf6 {[%clk 0:02:14.4]} 29.
Ne5 {[%clk 0:01:44.6]} 29... Ne4 {[%clk 0:02:14.3]} 30. Kg2 {[%clk 0:01:43.2]}
30... g5 {[%clk 0:02:10.6]} 31. Ng6 {[%clk 0:01:35.4]} 31... gxf4 {[%clk
0:02:09.8]} 32. Nxe7+ {[%clk 0:01:29.9]} 32... Kf7 {[%clk 0:02:09.9]} 33. Nxf5
{[%clk 0:01:25.4]} 33... Rc2+ {[%clk 0:02:04.7]} 34. Kh3 {[%clk 0:01:23.3]}
34... exf5 {[%clk 0:01:58.7]} 35. exf4 {[%clk 0:01:21.8]} 35... Nf6 {[%clk
0:01:58.6]} 36. Rg1 {[%clk 0:01:21.5]} 36... Ng4 {[%clk 0:01:58.3]} 37. Rg2
{[%clk 0:01:22]} 37... Rc3 {[%clk 0:01:59]} 38. h5 {[%clk 0:01:17.1]} 38... Rc1
{[%clk 0:01:58.2]} 39. Re2 {[%clk 0:01:11.9]} 39... Rh1+ {[%clk 0:01:56.9]} 40.
Kg2 {[%clk 0:01:12.2]} 40... Rh2+ {[%clk 0:01:50.7]} 41. Kf3 {[%clk 0:01:12.1]}
41... Rxe2 {[%clk 0:01:51.6]} 42. Kxe2 {[%clk 0:01:13]} 42... Nf6 {[%clk
0:01:52.5]} 43. Kf3 {[%clk 0:01:11.4]} 43... Nxh5 {[%clk 0:01:51.8]} 44. g4
{[%clk 0:01:12.3]} 44... Ng7 {[%clk 0:01:52.4]} 45. Kg3 {[%clk 0:01:12]} 45...
Kg6 {[%clk 0:01:51.7]} 46. Kh4 {[%clk 0:01:12]} 46... Ne6 {[%clk 0:01:51.7]} 47.
Kg3 {[%clk 0:01:10.9]} 47... Nxd4 {[%clk 0:01:51.7]} 48. Kh4 {[%clk 0:01:09.3]}
48... Ne2 {[%clk 0:01:50.5]} 0-1

[Event "Early-Titled-Tuesday-Blitz-March-19-2024"]
[Site "Chess.com"]
[Date "2024.03.19"]
[Round "1"]
[White "Mikhail_Bryakin"]
[Black "wild3000"]
[Result "1-0"]
[WhiteElo "2756"]
[BlackElo "2412"]
[TimeControl "180+1"]
[EndTime "8:05:19 PDT"]
[Termination "Mikhail_Bryakin won by resignation"]

1. e4 {[%clk 0:02:56.6]} 1... a6 {[%clk 0:02:58.3]} 2. d4 {[%clk 0:02:55.1]}
2... e6 {[%clk 0:02:58.5]} 3. f4 {[%clk 0:02:54.3]} 3... b5 {[%clk 0:02:58.3]}
4. Nf3 {[%clk 0:02:54.1]} 4... Bb7 {[%clk 0:02:58.3]} 5. Bd3 {[%clk 0:02:49]}
5... Nf6 {[%clk 0:02:58]} 6. Qe2 {[%clk 0:02:48.8]} 6... c5 {[%clk 0:02:57.8]}
7. c3 {[%clk 0:02:48.8]} 7... d5 {[%clk 0:02:52.3]} 8. e5 {[%clk 0:02:48.7]}
8... Ne4 {[%clk 0:02:52.4]} 9. Nbd2 {[%clk 0:02:49.1]} 9... Nxd2 {[%clk
0:02:45.2]} 10. Bxd2 {[%clk 0:02:50]} 10... g6 {[%clk 0:02:40.7]} 11. O-O {[%clk
0:02:48.2]} 11... Nd7 {[%clk 0:02:38.5]} 12. g4 {[%clk 0:02:46.7]} 12... Qb6
{[%clk 0:02:32.4]} 13. Kg2 {[%clk 0:02:45.2]} 13... b4 {[%clk 0:02:22.2]} 14.
Rac1 {[%clk 0:02:35.2]} 14... a5 {[%clk 0:02:20.1]} 15. Be3 {[%clk 0:02:32]}
15... cxd4 {[%clk 0:01:53.1]} 16. cxd4 {[%clk 0:02:29.8]} 16... Be7 {[%clk
0:01:36.3]} 17. f5 {[%clk 0:02:27.8]} 17... gxf5 {[%clk 0:01:28.6]} 18. gxf5
{[%clk 0:02:28.7]} 18... Rg8+ {[%clk 0:01:19.1]} 19. Kh1 {[%clk 0:02:28.3]}
19... h5 {[%clk 0:00:45.6]} 20. f6 {[%clk 0:02:27.1]} 20... Bf8 {[%clk
0:00:45.1]} 21. Rg1 {[%clk 0:02:21]} 21... Rxg1+ {[%clk 0:00:43.7]} 22. Kxg1
{[%clk 0:02:20.9]} 22... Rc8 {[%clk 0:00:39.8]} 23. Kf2 {[%clk 0:02:18]} 23...
Rxc1 {[%clk 0:00:35.2]} 24. Bxc1 {[%clk 0:02:18.9]} 24... a4 {[%clk 0:00:26.3]}
25. Be3 {[%clk 0:02:19.1]} 25... b3 {[%clk 0:00:25.9]} 26. a3 {[%clk 0:02:17.8]}
26... Nb8 {[%clk 0:00:25.8]} 27. Ng5 {[%clk 0:02:17.3]} 27... Nc6 {[%clk
0:00:22.9]} 28. Nxe6 {[%clk 0:02:07.1]} 28... fxe6 {[%clk 0:00:22.6]} 29. Qxh5+
{[%clk 0:02:07.7]} 29... Kd8 {[%clk 0:00:21.8]} 30. Qh8 {[%clk 0:02:08.4]} 30...
Nxd4 {[%clk 0:00:18.1]} 31. Qxf8+ {[%clk 0:02:08.5]} 31... Kc7 {[%clk
0:00:18.5]} 32. Qd6+ {[%clk 0:02:08.5]} 32... Qxd6 {[%clk 0:00:18.2]} 33. exd6+
{[%clk 0:02:09.4]} 33... Kxd6 {[%clk 0:00:19.1]} 34. Bxd4 {[%clk 0:02:10.3]}
34... e5 {[%clk 0:00:20]} 35. f7 {[%clk 0:02:10.9]} 35... Ke7 {[%clk 0:00:18.7]}
36. Bxe5 {[%clk 0:02:11.2]} 36... Kxf7 {[%clk 0:00:19.2]} 37. Bb5 {[%clk
0:02:11.6]} 37... Ke6 {[%clk 0:00:18.6]} 38. Bd4 {[%clk 0:02:11.8]} 38... Kf5
{[%clk 0:00:18.2]} 39. Ke3 {[%clk 0:02:12.3]} 1-0